[Event "*** Titled Tuesday Blitz"]
[Site "Chess.com"]
[Date "2020.04.28"]
[Round "6"]
[White "I_Hit_18K_on_BS"]
[Black "barbara25"]
[Result "1-0"]
[WhiteElo "2133"]
[BlackElo "2242"]
[TimeControl "180+1"]
[EndTime "11:07:05 PDT"]
[Termination "I_Hit_18K_on_BS won by resignation"]

1. e4 {[%clk 0:03:00.9]} 1... c5 {[%clk 0:02:59.9]} 2. Nf3 {[%clk 0:03:01.3]}
2... d6 {[%clk 0:03:00.3]} 3. d4 {[%clk 0:03:01.7]} 3... cxd4 {[%clk 0:03:00.7]}
4. Nxd4 {[%clk 0:03:02.6]} 4... Nf6 {[%clk 0:03:01.2]} 5. Nc3 {[%clk 0:03:03.3]}
5... a6 {[%clk 0:03:01.8]} 6. f3 {[%clk 0:03:03.9]} 6... e5 {[%clk 0:03:02]} 7.
Nb3 {[%clk 0:03:03.7]} 7... Be7 {[%clk 0:03:02.4]} 8. Be3 {[%clk 0:03:04.2]}
8... Be6 {[%clk 0:03:03]} 9. Qd2 {[%clk 0:03:04.7]} 9... Nbd7 {[%clk 0:03:03.7]}
10. O-O-O {[%clk 0:03:03.9]} 10... h5 {[%clk 0:03:04.3]} 11. Nd5 {[%clk
0:02:58.1]} 11... Nxd5 {[%clk 0:03:02.9]} 12. exd5 {[%clk 0:02:59]} 12... Bf5
{[%clk 0:03:03]} 13. Bd3 {[%clk 0:02:57.6]} 13... Bxd3 {[%clk 0:03:03]} 14. Qxd3
{[%clk 0:02:58.5]} 14... Bg5 {[%clk 0:03:01.9]} 15. Qd2 {[%clk 0:02:51]} 15...
Bxe3 {[%clk 0:03:00.9]} 16. Qxe3 {[%clk 0:02:51.9]} 16... Rc8 {[%clk 0:03:01.1]}
17. f4 {[%clk 0:02:48.1]} 17... O-O {[%clk 0:03:00.3]} 18. f5 {[%clk 0:02:45.2]}
18... Nf6 {[%clk 0:02:57.2]} 19. h3 {[%clk 0:02:38]} 19... Qc7 {[%clk
0:02:54.8]} 20. c3 {[%clk 0:02:30.9]} 20... b5 {[%clk 0:02:54.1]} 21. g4 {[%clk
0:02:21.3]} 21... b4 {[%clk 0:02:51.6]} 22. g5 {[%clk 0:02:15.9]} 22... Nh7
{[%clk 0:02:51.2]} 23. g6 {[%clk 0:02:15.2]} 23... fxg6 {[%clk 0:02:50.2]} 24.
fxg6 {[%clk 0:02:16.1]} 24... Nf6 {[%clk 0:02:49.7]} 25. Rd3 {[%clk 0:01:21.4]}
25... bxc3 {[%clk 0:02:38.3]} 26. bxc3 {[%clk 0:01:22.3]} 26... a5 {[%clk
0:02:37.4]} 27. Rf1 {[%clk 0:00:57.3]} 27... a4 {[%clk 0:02:35]} 28. Nd2 {[%clk
0:00:56.9]} 28... Rb8 {[%clk 0:02:34.3]} 29. Qg5 {[%clk 0:00:42.3]} 29... a3
{[%clk 0:01:53.7]} 30. Nb3 {[%clk 0:00:27.1]} 30... e4 {[%clk 0:01:52.8]} 31.
Re3 {[%clk 0:00:20.3]} 31... Qa7 {[%clk 0:01:15.8]} 32. Rg3 {[%clk 0:00:15.7]}
32... Rxb3 {[%clk 0:01:05.3]} 33. axb3 {[%clk 0:00:14.9]} 33... a2 {[%clk
0:01:05.2]} 34. Kb2 {[%clk 0:00:14.9]} 34... Ra8 {[%clk 0:00:34.2]} 35. Ra1
{[%clk 0:00:14.6]} 35... Qf2+ {[%clk 0:00:33.7]} 36. Kc1 {[%clk 0:00:13.8]}
36... Qe1+ {[%clk 0:00:32.3]} 37. Kb2 {[%clk 0:00:14]} 37... Qe2+ {[%clk
0:00:31.9]} 38. Kc1 {[%clk 0:00:13.7]} 38... e3 {[%clk 0:00:23.4]} 39. Qxe3
{[%clk 0:00:11.4]} 39... Qf1+ {[%clk 0:00:21.6]} 40. Kb2 {[%clk 0:00:11]} 40...
Kh8 {[%clk 0:00:20.3]} 41. Rxf1 {[%clk 0:00:07.6]} 1-0

[Event "*** Titled Tuesday Blitz"]
[Site "Chess.com"]
[Date "2020.04.28"]
[Round "6"]
[White "avantage_ru"]
[Black "axvesik"]
[Result "1-0"]
[WhiteElo "2630"]
[BlackElo "2468"]
[TimeControl "180+1"]
[EndTime "11:07:06 PDT"]
[Termination "avantage_ru won by checkmate"]

1. e4 {[%clk 0:03:00.9]} 1... e6 {[%clk 0:02:59.8]} 2. d3 {[%clk 0:03:00.4]}
2... d5 {[%clk 0:03:00.7]} 3. Nd2 {[%clk 0:03:00.8]} 3... Nf6 {[%clk 0:02:59.3]}
4. Ngf3 {[%clk 0:03:00.7]} 4... c5 {[%clk 0:02:59.9]} 5. g3 {[%clk 0:03:00.6]}
5... Nc6 {[%clk 0:03:00.5]} 6. Bg2 {[%clk 0:03:00.8]} 6... Be7 {[%clk
0:03:01.1]} 7. O-O {[%clk 0:03:01]} 7... Qc7 {[%clk 0:03:00.9]} 8. Re1 {[%clk
0:03:00.5]} 8... b6 {[%clk 0:03:01.4]} 9. Nf1 {[%clk 0:02:59.9]} 9... Bb7 {[%clk
0:03:01.8]} 10. Bf4 {[%clk 0:03:00]} 10... e5 {[%clk 0:02:59.2]} 11. Bg5 {[%clk
0:02:47.4]} 11... dxe4 {[%clk 0:02:54.8]} 12. dxe4 {[%clk 0:02:47]} 12... Rd8
{[%clk 0:02:54.6]} 13. Qb1 {[%clk 0:02:42.7]} 13... Nd4 {[%clk 0:02:49.2]} 14.
c3 {[%clk 0:02:39.7]} 14... Ne6 {[%clk 0:02:31.6]} 15. Bxf6 {[%clk 0:02:36.9]}
15... Bxf6 {[%clk 0:02:31.8]} 16. Ne3 {[%clk 0:02:35.5]} 16... O-O {[%clk
0:02:25]} 17. h4 {[%clk 0:02:34.3]} 17... g6 {[%clk 0:02:22.7]} 18. Qc2 {[%clk
0:02:31.2]} 18... Bg7 {[%clk 0:02:18.5]} 19. Bf1 {[%clk 0:02:21]} 19... Qe7
{[%clk 0:02:10.2]} 20. Bc4 {[%clk 0:02:18.9]} 20... Nc7 {[%clk 0:02:10.4]} 21.
a4 {[%clk 0:02:10.3]} 21... a6 {[%clk 0:02:04.6]} 22. Rad1 {[%clk 0:02:06.4]}
22... b5 {[%clk 0:02:04.7]} 23. axb5 {[%clk 0:02:02.8]} 23... axb5 {[%clk
0:02:05.4]} 24. Nd5 {[%clk 0:02:02.4]} 24... Nxd5 {[%clk 0:02:00.2]} 25. Bxd5
{[%clk 0:02:02.6]} 25... Bc8 {[%clk 0:02:00.6]} 26. Ra1 {[%clk 0:01:55.1]} 26...
Kh8 {[%clk 0:01:55.3]} 27. Qe2 {[%clk 0:01:51.6]} 27... Bg4 {[%clk 0:01:51.2]}
28. Qe3 {[%clk 0:01:47.2]} 28... f5 {[%clk 0:01:50.2]} 29. Nh2 {[%clk 0:01:41]}
29... f4 {[%clk 0:01:47.9]} 30. Qd3 {[%clk 0:01:40.5]} 30... fxg3 {[%clk
0:01:30.3]} 31. fxg3 {[%clk 0:01:37.4]} 31... Bh3 {[%clk 0:01:29.4]} 32. Qxb5
{[%clk 0:01:29.5]} 32... Rb8 {[%clk 0:01:28.5]} 33. Qe2 {[%clk 0:01:28.5]} 33...
c4 {[%clk 0:01:19.5]} 34. Rab1 {[%clk 0:01:11.4]} 34... Bh6 {[%clk 0:01:06.2]}
35. Nf3 {[%clk 0:01:06.1]} 35... Bg4 {[%clk 0:00:33]} 36. Rf1 {[%clk 0:01:05.4]}
36... Rb6 {[%clk 0:00:31.7]} 37. Qg2 {[%clk 0:01:02.4]} 37... Rbf6 {[%clk
0:00:26.7]} 38. Nh2 {[%clk 0:01:01.8]} 38... Qc5+ {[%clk 0:00:26]} 39. Kh1
{[%clk 0:01:01.3]} 39... Rf2 {[%clk 0:00:26.1]} 40. Rxf2 {[%clk 0:00:54.3]}
40... Rxf2 {[%clk 0:00:25]} 41. Nxg4 {[%clk 0:00:54.9]} 41... Rxg2 {[%clk
0:00:24.8]} 42. Kxg2 {[%clk 0:00:55.8]} 42... Bg7 {[%clk 0:00:25]} 43. Rf1
{[%clk 0:00:52.6]} 43... h5 {[%clk 0:00:25.1]} 44. Nh2 {[%clk 0:00:52]} 44...
Qb5 {[%clk 0:00:21.5]} 45. Rf2 {[%clk 0:00:50.4]} 45... Bh6 {[%clk 0:00:18.4]}
46. Nf3 {[%clk 0:00:50.3]} 46... Bg7 {[%clk 0:00:13.7]} 47. Ng5 {[%clk
0:00:49.8]} 47... Qc5 {[%clk 0:00:12.7]} 48. Rf7 {[%clk 0:00:48.2]} 48... Qe3
{[%clk 0:00:09.9]} 49. Bxc4 {[%clk 0:00:33.5]} 49... Bh6 {[%clk 0:00:06.8]} 50.
Rh7# {[%clk 0:00:33.2]} 1-0

[Event "*** Titled Tuesday Blitz"]
[Site "Chess.com"]
[Date "2020.04.28"]
[Round "6"]
[White "Eliwood44"]
[Black "maxsergej"]
[Result "1-0"]
[WhiteElo "2318"]
[BlackElo "2132"]
[TimeControl "180+1"]
[EndTime "11:07:07 PDT"]
[Termination "Eliwood44 won on time"]

1. d4 {[%clk 0:03:00.9]} 1... Nf6 {[%clk 0:02:58.2]} 2. Bf4 {[%clk 0:02:58.2]}
2... d5 {[%clk 0:02:56.2]} 3. e3 {[%clk 0:02:56]} 3... g6 {[%clk 0:02:52.1]} 4.
c4 {[%clk 0:02:55.3]} 4... Bg7 {[%clk 0:02:51.5]} 5. Nc3 {[%clk 0:02:55.1]} 5...
O-O {[%clk 0:02:51.5]} 6. Rc1 {[%clk 0:02:54.9]} 6... c5 {[%clk 0:02:46.1]} 7.
dxc5 {[%clk 0:02:54.9]} 7... Be6 {[%clk 0:02:43.8]} 8. Nf3 {[%clk 0:02:51.5]}
8... Qa5 {[%clk 0:02:40.2]} 9. Nd4 {[%clk 0:02:44.2]} 9... Nc6 {[%clk
0:02:35.7]} 10. Nb3 {[%clk 0:02:37.2]} 10... Qd8 {[%clk 0:02:22]} 11. cxd5
{[%clk 0:02:36.9]} 11... Nxd5 {[%clk 0:02:20.8]} 12. Nxd5 {[%clk 0:02:35.5]}
12... Bxd5 {[%clk 0:02:09]} 13. Rc2 {[%clk 0:02:28.4]} 13... Bxb3 {[%clk
0:01:56.1]} 14. Qxd8 {[%clk 0:02:23]} 14... Rfxd8 {[%clk 0:01:52.1]} 15. axb3
{[%clk 0:02:22.5]} 15... Nb4 {[%clk 0:01:46.2]} 16. Rd2 {[%clk 0:02:21.8]} 16...
Rxd2 {[%clk 0:01:44.2]} 17. Kxd2 {[%clk 0:02:22.7]} 17... Bxb2 {[%clk 0:01:38]}
18. Bc4 {[%clk 0:02:18.5]} 18... Rd8+ {[%clk 0:01:34]} 19. Ke2 {[%clk
0:02:13.6]} 19... Bf6 {[%clk 0:01:20.9]} 20. Rd1 {[%clk 0:02:09.4]} 20... Rxd1
{[%clk 0:01:19.5]} 21. Kxd1 {[%clk 0:02:10.3]} 21... a6 {[%clk 0:01:15.8]} 22.
Kd2 {[%clk 0:02:06.9]} 22... h5 {[%clk 0:01:10.8]} 23. h3 {[%clk 0:02:04.2]}
23... Kf8 {[%clk 0:01:10.7]} 24. e4 {[%clk 0:01:57.8]} 24... Bd4 {[%clk
0:01:02.9]} 25. Be3 {[%clk 0:01:54.3]} 25... Bxe3+ {[%clk 0:01:02.7]} 26. Kxe3
{[%clk 0:01:54.7]} 26... e6 {[%clk 0:01:00]} 27. Kd4 {[%clk 0:01:53.5]} 27...
Nc6+ {[%clk 0:00:59.6]} 28. Kc3 {[%clk 0:01:52.4]} 28... Ke7 {[%clk 0:00:59]}
29. b4 {[%clk 0:01:51.7]} 29... f5 {[%clk 0:00:56.7]} 30. Bd3 {[%clk 0:01:45.8]}
30... Kf6 {[%clk 0:00:52.5]} 31. f4 {[%clk 0:01:44.7]} 31... e5 {[%clk
0:00:48.1]} 32. exf5 {[%clk 0:01:40.7]} 32... gxf5 {[%clk 0:00:47]} 33. fxe5+
{[%clk 0:01:37.8]} 33... Kxe5 {[%clk 0:00:46.6]} 34. g3 {[%clk 0:01:34.9]} 34...
Nd4 {[%clk 0:00:44.1]} 35. Kd2 {[%clk 0:01:28.4]} 35... a5 {[%clk 0:00:38.8]}
36. bxa5 {[%clk 0:01:22.1]} 36... Nb3+ {[%clk 0:00:38.6]} 37. Ke3 {[%clk
0:01:22.3]} 37... Nxc5 {[%clk 0:00:38.7]} 38. Be2 {[%clk 0:01:22.6]} 38... Nb3
{[%clk 0:00:35.6]} 39. Bxh5 {[%clk 0:01:20.9]} 39... Nxa5 {[%clk 0:00:34.6]} 40.
Bf3 {[%clk 0:01:20.4]} 40... b5 {[%clk 0:00:28.1]} 41. h4 {[%clk 0:01:20.2]}
41... Nc4+ {[%clk 0:00:26.4]} 42. Kd3 {[%clk 0:01:19.2]} 42... Nd6 {[%clk
0:00:24.3]} 43. h5 {[%clk 0:01:18.2]} 43... Kf6 {[%clk 0:00:19.5]} 44. Kd4
{[%clk 0:01:17]} 44... Kg5 {[%clk 0:00:17.6]} 45. Kc5 {[%clk 0:01:16.4]} 45...
Nf7 {[%clk 0:00:17.7]} 46. Kxb5 {[%clk 0:01:15.2]} 46... Ne5 {[%clk 0:00:17.3]}
47. Bd1 {[%clk 0:01:11.9]} 47... f4 {[%clk 0:00:17.6]} 48. gxf4+ {[%clk
0:01:09.7]} 48... Kxf4 {[%clk 0:00:17.1]} 49. h6 {[%clk 0:01:10]} 49... Nf7
{[%clk 0:00:16.1]} 50. h7 {[%clk 0:01:09.1]} 50... Kg5 {[%clk 0:00:11.6]} 51.
Bc2 {[%clk 0:01:06]} 1-0

[Event "*** Titled Tuesday Blitz"]
[Site "Chess.com"]
[Date "2020.04.28"]
[Round "6"]
[White "TheCount"]
[Black "TerorPtica"]
[Result "0-1"]
[WhiteElo "2626"]
[BlackElo "2911"]
[TimeControl "180+1"]
[EndTime "11:07:08 PDT"]
[Termination "TerorPtica won by resignation"]

1. d4 {[%clk 0:02:58.8]} 1... Nf6 {[%clk 0:02:57.8]} 2. c4 {[%clk 0:02:57.6]}
2... e6 {[%clk 0:02:57.8]} 3. Nf3 {[%clk 0:02:57.3]} 3... d5 {[%clk 0:02:57.2]}
4. Nc3 {[%clk 0:02:57.1]} 4... Bb4 {[%clk 0:02:56.7]} 5. Bg5 {[%clk 0:02:52.4]}
5... h6 {[%clk 0:02:56.7]} 6. Bxf6 {[%clk 0:02:51]} 6... Qxf6 {[%clk 0:02:57.6]}
7. e3 {[%clk 0:02:50]} 7... O-O {[%clk 0:02:55.6]} 8. Rc1 {[%clk 0:02:49.8]}
8... dxc4 {[%clk 0:02:38.6]} 9. Bxc4 {[%clk 0:02:49.6]} 9... c5 {[%clk
0:02:39.2]} 10. O-O {[%clk 0:02:49.5]} 10... cxd4 {[%clk 0:02:39]} 11. Qxd4
{[%clk 0:02:40.2]} 11... Qxd4 {[%clk 0:02:35.3]} 12. Nxd4 {[%clk 0:02:40.1]}
12... Bd7 {[%clk 0:02:34.2]} 13. Rfd1 {[%clk 0:02:34.7]} 13... Rc8 {[%clk
0:02:17.6]} 14. Bb5 {[%clk 0:02:21.8]} 14... Bxc3 {[%clk 0:02:03.9]} 15. Rxc3
{[%clk 0:02:19.9]} 15... Rxc3 {[%clk 0:02:03.6]} 16. bxc3 {[%clk 0:02:20.8]}
16... Bxb5 {[%clk 0:01:20.1]} 17. Nxb5 {[%clk 0:02:18.9]} 17... Nc6 {[%clk
0:01:20.2]} 18. Rd7 {[%clk 0:02:15.7]} 18... a6 {[%clk 0:01:08.3]} 19. Nd4
{[%clk 0:02:02.4]} 19... Rd8 {[%clk 0:01:00.9]} 20. Rxd8+ {[%clk 0:01:18.1]}
20... Nxd8 {[%clk 0:00:59.8]} 21. f4 {[%clk 0:01:10.9]} 21... Kf8 {[%clk
0:00:58.4]} 22. Kf2 {[%clk 0:01:10.7]} 22... Ke7 {[%clk 0:00:58.8]} 23. Ke2
{[%clk 0:01:09.9]} 23... Kd6 {[%clk 0:00:57.2]} 24. Kd3 {[%clk 0:01:10.1]} 24...
Nc6 {[%clk 0:00:49.3]} 25. e4 {[%clk 0:01:08]} 25... Nxd4 {[%clk 0:00:28.1]} 26.
Kxd4 {[%clk 0:01:04.4]} 26... f6 {[%clk 0:00:17.9]} 27. Kc4 {[%clk 0:00:34.1]}
27... Kc6 {[%clk 0:00:14.9]} 28. f5 {[%clk 0:00:25.2]} 28... e5 {[%clk
0:00:10.3]} 29. Kb4 {[%clk 0:00:22.4]} 29... b6 {[%clk 0:00:09.9]} 30. a4 {[%clk
0:00:19.5]} 30... Kd6 {[%clk 0:00:05.9]} 31. a5 {[%clk 0:00:17.2]} 31... Kc6
{[%clk 0:00:05.2]} 32. c4 {[%clk 0:00:11.3]} 32... h5 {[%clk 0:00:03.5]} 33. g3
{[%clk 0:00:10.5]} 33... bxa5+ {[%clk 0:00:01.6]} 34. Kxa5 {[%clk 0:00:10.2]}
34... Kc5 {[%clk 0:00:02.5]} 35. Kxa6 {[%clk 0:00:09.4]} 35... Kxc4 {[%clk
0:00:03.4]} 36. Kb6 {[%clk 0:00:09.4]} 36... Kd4 {[%clk 0:00:04.3]} 37. Kc6
{[%clk 0:00:09.4]} 37... Kxe4 {[%clk 0:00:04.9]} 38. Kd6 {[%clk 0:00:10]} 38...
Kxf5 {[%clk 0:00:05.1]} 0-1

[Event "*** Titled Tuesday Blitz"]
[Site "Chess.com"]
[Date "2020.04.28"]
[Round "6"]
[White "ALeks_Ivlev"]
[Black "Kotofeyca"]
[Result "0-1"]
[WhiteElo "2571"]
[BlackElo "2449"]
[TimeControl "180+1"]
[EndTime "11:07:12 PDT"]
[Termination "Kotofeyca won by resignation"]

1. d4 {[%clk 0:03:00.9]} 1... d5 {[%clk 0:02:59.4]} 2. c4 {[%clk 0:03:01.1]}
2... c6 {[%clk 0:02:59.3]} 3. Nf3 {[%clk 0:03:01.1]} 3... Nf6 {[%clk 0:02:59.1]}
4. e3 {[%clk 0:03:01.5]} 4... a6 {[%clk 0:02:58.9]} 5. Nbd2 {[%clk 0:03:01.6]}
5... Bg4 {[%clk 0:02:58.8]} 6. Bd3 {[%clk 0:03:01.1]} 6... e6 {[%clk 0:02:59]}
7. h3 {[%clk 0:03:00.3]} 7... Bh5 {[%clk 0:02:58.4]} 8. O-O {[%clk 0:03:00.1]}
8... Nbd7 {[%clk 0:02:58.6]} 9. Qc2 {[%clk 0:02:53.4]} 9... Bg6 {[%clk
0:02:43.9]} 10. b3 {[%clk 0:02:52.5]} 10... Be7 {[%clk 0:02:40.9]} 11. Bb2
{[%clk 0:02:51.3]} 11... Bxd3 {[%clk 0:02:37.3]} 12. Qxd3 {[%clk 0:02:50.2]}
12... O-O {[%clk 0:02:38.2]} 13. e4 {[%clk 0:02:46.8]} 13... dxe4 {[%clk
0:02:38.1]} 14. Nxe4 {[%clk 0:02:45.7]} 14... Nxe4 {[%clk 0:02:38.4]} 15. Qxe4
{[%clk 0:02:44.7]} 15... Qa5 {[%clk 0:02:33.8]} 16. Rfe1 {[%clk 0:02:16.9]}
16... Ba3 {[%clk 0:02:30.4]} 17. Bxa3 {[%clk 0:02:13.8]} 17... Qxa3 {[%clk
0:02:31.3]} 18. Ng5 {[%clk 0:02:09.7]} 18... Nf6 {[%clk 0:02:28.1]} 19. Qe2
{[%clk 0:02:08.5]} 19... Rfd8 {[%clk 0:02:24.6]} 20. Rad1 {[%clk 0:02:07.2]}
20... Rd7 {[%clk 0:02:19.4]} 21. Rd2 {[%clk 0:01:53.9]} 21... Rad8 {[%clk
0:02:17.8]} 22. Red1 {[%clk 0:01:53.4]} 22... Qa5 {[%clk 0:01:55.3]} 23. Nf3
{[%clk 0:01:52.2]} 23... h6 {[%clk 0:01:50.7]} 24. Ne5 {[%clk 0:01:46.5]} 24...
Rd6 {[%clk 0:01:43.5]} 25. c5 {[%clk 0:01:36]} 25... Rd5 {[%clk 0:01:42.4]} 26.
Nc4 {[%clk 0:01:36.3]} 26... Qc7 {[%clk 0:01:37]} 27. Nd6 {[%clk 0:01:28.3]}
27... Ne8 {[%clk 0:01:35.9]} 28. Ne4 {[%clk 0:01:22.3]} 28... Qf4 {[%clk
0:01:32.4]} 29. g3 {[%clk 0:01:17.9]} 29... Qf5 {[%clk 0:01:31.7]} 30. Kg2
{[%clk 0:01:12.4]} 30... R5d7 {[%clk 0:01:28.3]} 31. f4 {[%clk 0:01:07]} 31...
Qd5 {[%clk 0:01:27.8]} 32. Qf3 {[%clk 0:01:05.1]} 32... Nf6 {[%clk 0:01:22.5]}
33. Nc3 {[%clk 0:01:00.6]} 33... Qxf3+ {[%clk 0:01:14.6]} 34. Kxf3 {[%clk
0:00:59.9]} 34... Kf8 {[%clk 0:01:06.2]} 35. b4 {[%clk 0:00:50.2]} 35... Ke7
{[%clk 0:01:05.8]} 36. a4 {[%clk 0:00:46.7]} 36... Nd5 {[%clk 0:01:05.8]} 37.
Nxd5+ {[%clk 0:00:45.4]} 37... Rxd5 {[%clk 0:01:06.1]} 38. Ke3 {[%clk
0:00:44.4]} 38... f6 {[%clk 0:01:04.6]} 39. b5 {[%clk 0:00:34.7]} 39... axb5
{[%clk 0:00:52.8]} 40. axb5 {[%clk 0:00:33.5]} 40... e5 {[%clk 0:00:50.4]} 41.
fxe5 {[%clk 0:00:26.8]} 41... fxe5 {[%clk 0:00:49.7]} 42. bxc6 {[%clk
0:00:25.6]} 42... bxc6 {[%clk 0:00:46.5]} 43. dxe5 {[%clk 0:00:12.9]} 43... Rxd2
{[%clk 0:00:36.4]} 44. Rxd2 {[%clk 0:00:13]} 44... Rxd2 {[%clk 0:00:37.1]} 45.
Kxd2 {[%clk 0:00:13.9]} 45... Ke6 {[%clk 0:00:37.7]} 46. Kc3 {[%clk 0:00:13]}
46... Kxe5 {[%clk 0:00:38.6]} 47. Kb4 {[%clk 0:00:13.5]} 47... Kd4 {[%clk
0:00:37.3]} 48. h4 {[%clk 0:00:11.2]} 48... h5 {[%clk 0:00:37]} 49. Kb3 {[%clk
0:00:10.6]} 49... Kxc5 {[%clk 0:00:36.4]} 50. Kc3 {[%clk 0:00:11.5]} 50... Kd5
{[%clk 0:00:36.5]} 51. Kd3 {[%clk 0:00:12.4]} 51... Ke5 {[%clk 0:00:36]} 52. Ke3
{[%clk 0:00:13.3]} 52... Kf5 {[%clk 0:00:36]} 53. Kf3 {[%clk 0:00:13.8]} 53...
c5 {[%clk 0:00:36]} 0-1

[Event "*** Titled Tuesday Blitz"]
[Site "Chess.com"]
[Date "2020.04.28"]
[Round "6"]
[White "Slovak_fighter2000"]
[Black "Baby_Shak"]
[Result "0-1"]
[WhiteElo "2523"]
[BlackElo "2359"]
[TimeControl "180+1"]
[EndTime "11:07:12 PDT"]
[Termination "Baby_Shak won by checkmate"]

1. d4 {[%clk 0:03:00.9]} 1... d5 {[%clk 0:02:59.6]} 2. Nf3 {[%clk 0:03:00.6]}
2... Nc6 {[%clk 0:02:59.6]} 3. Bf4 {[%clk 0:02:57.3]} 3... Bg4 {[%clk
0:02:58.1]} 4. e3 {[%clk 0:02:56.3]} 4... e6 {[%clk 0:02:57.6]} 5. h3 {[%clk
0:02:53.4]} 5... Bxf3 {[%clk 0:02:56.6]} 6. Qxf3 {[%clk 0:02:53.6]} 6... Bd6
{[%clk 0:02:57.5]} 7. c3 {[%clk 0:02:45.6]} 7... Nf6 {[%clk 0:02:48.1]} 8. Nd2
{[%clk 0:02:33.7]} 8... O-O {[%clk 0:02:47.2]} 9. Bd3 {[%clk 0:02:29.3]} 9... e5
{[%clk 0:02:44.7]} 10. dxe5 {[%clk 0:02:29.6]} 10... Nxe5 {[%clk 0:02:45.6]} 11.
Bxe5 {[%clk 0:02:29.2]} 11... Bxe5 {[%clk 0:02:46.5]} 12. g4 {[%clk 0:02:26.2]}
12... Re8 {[%clk 0:02:32.3]} 13. O-O-O {[%clk 0:02:22.9]} 13... c6 {[%clk
0:02:24.6]} 14. g5 {[%clk 0:02:17.6]} 14... Nd7 {[%clk 0:02:24.3]} 15. h4 {[%clk
0:02:15.2]} 15... Qe7 {[%clk 0:02:14.8]} 16. h5 {[%clk 0:02:10]} 16... Qxg5
{[%clk 0:01:58.4]} 17. Rdg1 {[%clk 0:02:08.9]} 17... Qh6 {[%clk 0:01:57.4]} 18.
Qf5 {[%clk 0:02:01.4]} 18... Nc5 {[%clk 0:01:51.8]} 19. Bc2 {[%clk 0:01:58]}
19... Bf6 {[%clk 0:01:42.1]} 20. Nf3 {[%clk 0:01:49.9]} 20... Ne4 {[%clk
0:01:40.9]} 21. Bxe4 {[%clk 0:01:46.3]} 21... dxe4 {[%clk 0:01:35.7]} 22. Nh2
{[%clk 0:01:45.8]} 22... Kh8 {[%clk 0:01:16.3]} 23. Ng4 {[%clk 0:01:30.7]} 23...
Qg5 {[%clk 0:01:15.7]} 24. Qd7 {[%clk 0:01:29.1]} 24... Re7 {[%clk 0:01:08.6]}
25. Qd6 {[%clk 0:01:07.2]} 25... Be5 {[%clk 0:00:56.5]} 26. Qd1 {[%clk
0:00:59.1]} 26... h6 {[%clk 0:00:51]} 27. Qc2 {[%clk 0:00:50.2]} 27... Qf5
{[%clk 0:00:50.5]} 28. f4 {[%clk 0:00:43.9]} 28... Bc7 {[%clk 0:00:46.2]} 29.
Qg2 {[%clk 0:00:40.5]} 29... f6 {[%clk 0:00:37.5]} 30. Rh3 {[%clk 0:00:35]}
30... Rd8 {[%clk 0:00:25.5]} 31. Rg3 {[%clk 0:00:32]} 31... Qh7 {[%clk
0:00:18.7]} 32. Nf2 {[%clk 0:00:21.8]} 32... Bb6 {[%clk 0:00:17.4]} 33. Kc2
{[%clk 0:00:19.3]} 33... Red7 {[%clk 0:00:15]} 34. Kb3 {[%clk 0:00:07.9]} 34...
Qg8+ {[%clk 0:00:14.6]} 35. Kc2 {[%clk 0:00:06]} 35... Qxa2 {[%clk 0:00:11.9]}
36. Nxe4 {[%clk 0:00:03.4]} 36... Qa4+ {[%clk 0:00:11.5]} 37. Kc1 {[%clk
0:00:02.6]} 37... Rd1+ {[%clk 0:00:10.7]} 38. Rxd1 {[%clk 0:00:01.3]} 38...
Rxd1# {[%clk 0:00:11.6]} 0-1

[Event "*** Titled Tuesday Blitz"]
[Site "Chess.com"]
[Date "2020.04.28"]
[Round "6"]
[White "MaxLeto"]
[Black "Irina_Barchuk"]
[Result "1-0"]
[WhiteElo "2363"]
[BlackElo "2193"]
[TimeControl "180+1"]
[EndTime "11:07:12 PDT"]
[Termination "MaxLeto won on time"]

1. g4 {[%clk 0:02:55.8]} 1... d5 {[%clk 0:02:57.5]} 2. Bg2 {[%clk 0:02:55.2]}
2... h5 {[%clk 0:02:53.2]} 3. gxh5 {[%clk 0:02:48.3]} 3... e5 {[%clk 0:02:50]}
4. d4 {[%clk 0:02:47.7]} 4... e4 {[%clk 0:02:49.3]} 5. c4 {[%clk 0:02:46.5]}
5... Bg4 {[%clk 0:02:44.2]} 6. Qb3 {[%clk 0:02:40.1]} 6... Nc6 {[%clk
0:02:36.6]} 7. Be3 {[%clk 0:02:13.3]} 7... Bb4+ {[%clk 0:02:29]} 8. Nc3 {[%clk
0:02:10.9]} 8... dxc4 {[%clk 0:02:17.4]} 9. Qxc4 {[%clk 0:02:10.4]} 9... Be6
{[%clk 0:02:17.7]} 10. Qb5 {[%clk 0:02:01.5]} 10... Rb8 {[%clk 0:02:13.2]} 11.
Bxe4 {[%clk 0:01:56.2]} 11... a6 {[%clk 0:02:09.5]} 12. Bxc6+ {[%clk 0:01:50.3]}
12... bxc6 {[%clk 0:02:10.4]} 13. Qxc6+ {[%clk 0:01:51.2]} 13... Kf8 {[%clk
0:02:04.7]} 14. Nf3 {[%clk 0:01:46.6]} 14... Rxh5 {[%clk 0:01:53.8]} 15. Qxa6
{[%clk 0:01:36.8]} 15... Ne7 {[%clk 0:01:37.1]} 16. Ne5 {[%clk 0:01:27.9]} 16...
Qd5 {[%clk 0:01:14]} 17. Rg1 {[%clk 0:01:09.9]} 17... Rxh2 {[%clk 0:01:03.5]}
18. a3 {[%clk 0:00:55.5]} 18... Bxc3+ {[%clk 0:00:57.8]} 19. bxc3 {[%clk
0:00:56.4]} 19... Nf5 {[%clk 0:00:49.8]} 20. Qc6 {[%clk 0:00:44]} 20... Nxe3
{[%clk 0:00:44.9]} 21. fxe3 {[%clk 0:00:42.4]} 21... Rb2 {[%clk 0:00:35.6]} 22.
Qxd5 {[%clk 0:00:10.5]} 22... Rbxe2+ {[%clk 0:00:28.5]} 23. Kd1 {[%clk
0:00:10.3]} 23... Bxd5 {[%clk 0:00:26.8]} 24. c4 {[%clk 0:00:04.3]} 24... Rd2+
{[%clk 0:00:19.6]} 25. Kc1 {[%clk 0:00:03.9]} 25... Rc2+ {[%clk 0:00:16.8]} 26.
Kd1 {[%clk 0:00:04.1]} 26... Be4 {[%clk 0:00:05.2]} 27. a4 {[%clk 0:00:02.7]}
27... f6 {[%clk 0:00:01.5]} 28. Ng6+ {[%clk 0:00:02.1]} 1-0